[Event "Titled Tuesday Blitz December 27 Late 2022"]
[White "Kopacz, Grzegorz"]
[Black "Suder, Jakub"]
[WhiteFideId "1109880"]
[BlackFideId "1195310"]
[WhiteElo "1997"]
[BlackElo "2244"]
[Result "0-1"]
[Round "01"]
[TimeControl "180+2"]
[Date "2022.12.27"]
[WhiteClock "0:01:14"]
[BlackClock "0:01:55"]

1. d4 {[%clk 0:03:00]}  d5 {[%clk 0:02:56]} 2. c4 {[%clk 0:03:00]}  e6 {[%clk 0:02:55]} 3. Nc3 {[%clk 0:03:00]}  c6 {[%clk 0:02:54]} 4. e4 {[%clk 0:02:57]}  dxe4 {[%clk 0:02:52]} 5. Nxe4 {[%clk 0:02:58]}  Bb4+ {[%clk 0:02:52]} 6. Nc3 {[%clk 0:02:39]}  e5 {[%clk 0:02:51]} 7. d5 {[%clk 0:02:23]}  Nf6 {[%clk 0:02:44]} 8. Bg5 {[%clk 0:02:19]}  Qa5 {[%clk 0:02:27]} 9. Bxf6 {[%clk 0:02:04]}  Bxc3+ {[%clk 0:02:26]} 10. Ke2 {[%clk 0:02:04]}  gxf6 {[%clk 0:02:21]} 11. bxc3 {[%clk 0:02:03]}  Qxc3 {[%clk 0:02:19]} 12. Nf3 {[%clk 0:02:00]}  Qxc4+ {[%clk 0:02:15]} 13. Ke3 {[%clk 0:01:54]}  Qxd5 {[%clk 0:02:12]} 14. Qa4 {[%clk 0:01:53]}  Qc5+ {[%clk 0:02:07]} 15. Ke2 {[%clk 0:01:46]}  Be6 {[%clk 0:02:05]} 16. Rd1 {[%clk 0:01:39]}  Nd7 {[%clk 0:02:01]} 17. Ke1 {[%clk 0:01:32]}  Qc3+ {[%clk 0:02:00]} 18. Nd2 {[%clk 0:01:29]}  Nc5 {[%clk 0:01:58]} 19. Qh4 {[%clk 0:01:26]}  O-O-O {[%clk 0:01:57]} 20. Be2 {[%clk 0:01:21]}  Rxd2 {[%clk 0:01:55]} 21. Rxd2 {[%clk 0:01:19]}  Rd8 {[%clk 0:01:55]} 22. Qh6 {[%clk 0:01:14]}  Ne4 {[%clk 0:01:55]} 0-1


[Site "https://www.chess.com"]

[Event "Titled Tuesday Blitz December 27 Late 2022"]
[White "Kozin, Yuri"]
[Black "Rose, Felix"]
[WhiteFideId "4129920"]
[BlackFideId "5105722"]
[WhiteElo "2251"]
[BlackElo "2091"]
[Result "1/2-1/2"]
[Round "01"]
[TimeControl "180+2"]
[Date "2022.12.27"]
[WhiteClock "0:00:14"]
[BlackClock "0:00:55"]

1. e4 {[%clk 0:03:00]}  c5 {[%clk 0:02:59]} 2. Nf3 {[%clk 0:03:01]}  e6 {[%clk 0:02:58]} 3. d4 {[%clk 0:03:01]}  cxd4 {[%clk 0:02:59]} 4. Nxd4 {[%clk 0:03:02]}  a6 {[%clk 0:02:59]} 5. Nc3 {[%clk 0:03:02]}  b5 {[%clk 0:02:59]} 6. a3 {[%clk 0:03:02]}  Bb7 {[%clk 0:02:59]} 7. f4 {[%clk 0:03:03]}  Nc6 {[%clk 0:03:00]} 8. Be3 {[%clk 0:03:01]}  Qb6 {[%clk 0:02:55]} 9. Qd3 {[%clk 0:02:43]}  Bc5 {[%clk 0:02:52]} 10. O-O-O {[%clk 0:02:42]}  Nxd4 {[%clk 0:02:49]} 11. Bxd4 {[%clk 0:02:42]}  Bxd4 {[%clk 0:02:50]} 12. Qxd4 {[%clk 0:02:43]}  Qxd4 {[%clk 0:02:49]} 13. Rxd4 {[%clk 0:02:44]}  Nf6 {[%clk 0:02:48]} 14. Be2 {[%clk 0:02:35]}  d5 {[%clk 0:02:39]} 15. e5 {[%clk 0:02:30]}  Nd7 {[%clk 0:02:36]} 16. Bf3 {[%clk 0:02:27]}  Ke7 {[%clk 0:02:32]} 17. g4 {[%clk 0:02:23]}  f6 {[%clk 0:02:27]} 18. exf6+ {[%clk 0:02:19]}  gxf6 {[%clk 0:02:27]} 19. Re1 {[%clk 0:02:17]}  Kd6 {[%clk 0:02:24]} 20. g5 {[%clk 0:02:10]}  f5 {[%clk 0:02:22]} 21. Na2 {[%clk 0:01:57]}  h6 {[%clk 0:02:18]} 22. h4 {[%clk 0:01:56]}  hxg5 {[%clk 0:02:18]} 23. hxg5 {[%clk 0:01:57]}  Rh3 {[%clk 0:02:17]} 24. Bg2 {[%clk 0:01:53]}  Rg3 {[%clk 0:02:12]} 25. Bh1 {[%clk 0:01:41]}  Rh8 {[%clk 0:02:09]} 26. Nb4 {[%clk 0:01:40]}  Nc5 {[%clk 0:02:04]} 27. Rdd1 {[%clk 0:01:36]}  Rh4 {[%clk 0:02:02]} 28. Rf1 {[%clk 0:01:28]}  Rgg4 {[%clk 0:01:46]} 29. Rd4 {[%clk 0:01:19]}  Rxg5 {[%clk 0:01:43]} 30. fxg5 {[%clk 0:01:16]}  Rxd4 {[%clk 0:01:43]} 31. Rg1 {[%clk 0:01:01]}  Ke7 {[%clk 0:01:43]} 32. Bf3 {[%clk 0:00:57]}  Kf7 {[%clk 0:01:42]} 33. Rh1 {[%clk 0:00:51]}  Kg7 {[%clk 0:01:35]} 34. Bh5 {[%clk 0:00:48]}  a5 {[%clk 0:01:27]} 35. Na2 {[%clk 0:00:46]}  b4 {[%clk 0:01:25]} 36. axb4 {[%clk 0:00:45]}  axb4 {[%clk 0:01:26]} 37. Be8 {[%clk 0:00:44]}  Rg4 {[%clk 0:01:23]} 38. g6 {[%clk 0:00:44]}  b3 {[%clk 0:01:18]} 39. Nc3 {[%clk 0:00:36]}  bxc2 {[%clk 0:01:15]} 40. Kxc2 {[%clk 0:00:33]}  Rg2+ {[%clk 0:01:15]} 41. Kb1 {[%clk 0:00:32]}  d4 {[%clk 0:01:14]} 42. Nb5 {[%clk 0:00:30]}  Be4+ {[%clk 0:01:11]} 43. Ka1 {[%clk 0:00:27]}  Nb3+ {[%clk 0:01:08]} 44. Ka2 {[%clk 0:00:25]}  Bd5 {[%clk 0:01:08]} 45. Ka3 {[%clk 0:00:25]}  Rxg6 {[%clk 0:01:03]} 46. Rh3 {[%clk 0:00:21]}  Rg1 {[%clk 0:00:59]} 47. Rxb3 {[%clk 0:00:20]}  Ra1+ {[%clk 0:00:57]} 48. Kb4 {[%clk 0:00:20]}  Bxb3 {[%clk 0:00:57]} 49. Kxb3 {[%clk 0:00:21]}  Kf6 {[%clk 0:00:56]} 50. Nxd4 {[%clk 0:00:21]}  e5 {[%clk 0:00:56]} 51. Nc2 {[%clk 0:00:21]}  Ra8 {[%clk 0:00:55]} 52. Bc6 {[%clk 0:00:21]}  Rb8+ {[%clk 0:00:55]} 53. Kc4 {[%clk 0:00:20]}  f4 {[%clk 0:00:56]} 54. b4 {[%clk 0:00:20]}  Kf5 {[%clk 0:00:56]} 55. b5 {[%clk 0:00:20]}  e4 {[%clk 0:00:56]} 56. Nd4+ {[%clk 0:00:21]}  Ke5 {[%clk 0:00:56]} 57. Nb3 {[%clk 0:00:20]}  f3 {[%clk 0:00:56]} 58. Nd2 {[%clk 0:00:19]}  f2 {[%clk 0:00:55]} 59. Bxe4 {[%clk 0:00:17]}  f1=Q+ {[%clk 0:00:55]} 60. Nxf1 {[%clk 0:00:18]}  Kxe4 {[%clk 0:00:56]} 61. Nd2+ {[%clk 0:00:18]}  Ke5 {[%clk 0:00:56]} 62. Kc5 {[%clk 0:00:18]}  Rc8+ {[%clk 0:00:56]} 63. Kb6 {[%clk 0:00:18]}  Kd5 {[%clk 0:00:56]} 64. Nb3 {[%clk 0:00:18]}  Rb8+ {[%clk 0:00:56]} 65. Ka6 {[%clk 0:00:18]}  Kc4 {[%clk 0:00:54]} 66. Na5+ {[%clk 0:00:18]}  Kc5 {[%clk 0:00:54]} 67. Nb7+ {[%clk 0:00:16]}  Kb4 {[%clk 0:00:54]} 68. Ka7 {[%clk 0:00:14]}  Rxb7+ {[%clk 0:00:54]} 69. Kxb7 {[%clk 0:00:14]}  Kxb5 {[%clk 0:00:55]} 1/2-1/2


[Site "https://www.chess.com"]

[Event "Titled Tuesday Blitz December 27 Late 2022"]
[White "Kravtsiv, Martyn"]
[Black "Tomaszewski, Kacper"]
[WhiteFideId "14113147"]
[BlackFideId "1127373"]
[WhiteElo "2598"]
[BlackElo "2313"]
[Result "1-0"]
[Round "01"]
[TimeControl "180+2"]
[Date "2022.12.27"]
[WhiteClock "0:00:57"]
[BlackClock "0:00:04"]

1. e4 {[%clk 0:03:00]}  c5 {[%clk 0:02:55]} 2. Nf3 {[%clk 0:03:00]}  e6 {[%clk 0:02:54]} 3. d4 {[%clk 0:03:00]}  cxd4 {[%clk 0:02:53]} 4. Nxd4 {[%clk 0:03:01]}  Bc5 {[%clk 0:02:52]} 5. Nb3 {[%clk 0:02:57]}  Bb6 {[%clk 0:02:52]} 6. Bd3 {[%clk 0:02:50]}  Ne7 {[%clk 0:02:52]} 7. O-O {[%clk 0:02:47]}  O-O {[%clk 0:02:53]} 8. Nc3 {[%clk 0:02:45]}  f5 {[%clk 0:02:51]} 9. Kh1 {[%clk 0:02:42]}  Nbc6 {[%clk 0:02:50]} 10. f4 {[%clk 0:02:39]}  fxe4 {[%clk 0:02:49]} 11. Nxe4 {[%clk 0:02:39]}  d5 {[%clk 0:02:47]} 12. Ng5 {[%clk 0:02:38]}  h6 {[%clk 0:02:36]} 13. Nf3 {[%clk 0:02:37]}  Nf5 {[%clk 0:02:26]} 14. Qe2 {[%clk 0:02:28]}  Qe8 {[%clk 0:02:18]} 15. g4 {[%clk 0:02:14]}  Nfd4 {[%clk 0:02:05]} 16. Nbxd4 {[%clk 0:02:13]}  Nxd4 {[%clk 0:02:05]} 17. Nxd4 {[%clk 0:02:12]}  Bxd4 {[%clk 0:02:06]} 18. c3 {[%clk 0:02:11]}  Bb6 {[%clk 0:02:04]} 19. Bd2 {[%clk 0:02:11]}  Bd7 {[%clk 0:01:56]} 20. Rae1 {[%clk 0:02:09]}  d4 {[%clk 0:01:40]} 21. h3 {[%clk 0:02:00]}  Bc6+ {[%clk 0:01:33]} 22. Kh2 {[%clk 0:01:59]}  e5 {[%clk 0:01:21]} 23. Qxe5 {[%clk 0:01:51]}  Qxe5 {[%clk 0:01:20]} 24. fxe5 {[%clk 0:01:49]}  Rxf1 {[%clk 0:01:18]} 25. Rxf1 {[%clk 0:01:49]}  Re8 {[%clk 0:01:18]} 26. e6 {[%clk 0:01:39]}  Bd5 {[%clk 0:01:09]} 27. Bg6 {[%clk 0:01:38]}  Bc7+ {[%clk 0:00:54]} 28. Kg1 {[%clk 0:01:25]}  Re7 {[%clk 0:00:43]} 29. Bf7+ {[%clk 0:01:23]}  Kh7 {[%clk 0:00:42]} 30. cxd4 {[%clk 0:01:22]}  Bxe6 {[%clk 0:00:35]} 31. Bxe6 {[%clk 0:01:17]}  Rxe6 {[%clk 0:00:36]} 32. Re1 {[%clk 0:01:17]}  Rc6 {[%clk 0:00:08]} 33. Bc3 {[%clk 0:01:12]}  Bb6 {[%clk 0:00:07]} 34. Kg2 {[%clk 0:01:10]}  Kg6 {[%clk 0:00:07]} 35. d5 {[%clk 0:01:03]}  Rd6 {[%clk 0:00:07]} 36. Re6+ {[%clk 0:01:01]}  Rxe6 {[%clk 0:00:07]} 37. dxe6 {[%clk 0:01:01]}  Bc5 {[%clk 0:00:07]} 38. Kf3 {[%clk 0:01:01]}  h5 {[%clk 0:00:06]} 39. Ke4 {[%clk 0:00:59]}  hxg4 {[%clk 0:00:05]} 40. hxg4 {[%clk 0:00:59]}  Kg5 {[%clk 0:00:05]} 41. Bxg7 {[%clk 0:00:58]}  Kxg4 {[%clk 0:00:04]} 42. Bf6 {[%clk 0:00:57]} 1-0


[Site "https://www.chess.com"]

[Event "Titled Tuesday Blitz December 27 Late 2022"]
[White "Kretchetov, Alexandre"]
[Black "Oparin, Grigoriy"]
[WhiteFideId "4124588"]
[BlackFideId "24125890"]
[WhiteElo "2195"]
[BlackElo "2667"]
[Result "1-0"]
[Round "01"]
[TimeControl "180+2"]
[Date "2022.12.27"]
[WhiteClock "0:00:08"]
[BlackClock "0:00:02"]

1. d4 {[%clk 0:02:58]}  d5 {[%clk 0:02:59]} 2. c4 {[%clk 0:02:58]}  e6 {[%clk 0:02:59]} 3. Nc3 {[%clk 0:02:53]}  Nf6 {[%clk 0:03:00]} 4. cxd5 {[%clk 0:02:53]}  exd5 {[%clk 0:03:01]} 5. Bg5 {[%clk 0:02:52]}  c6 {[%clk 0:03:02]} 6. e3 {[%clk 0:02:52]}  h6 {[%clk 0:03:02]} 7. Bh4 {[%clk 0:02:51]}  Be7 {[%clk 0:03:03]} 8. Qc2 {[%clk 0:02:50]}  O-O {[%clk 0:03:03]} 9. Bd3 {[%clk 0:02:50]}  Re8 {[%clk 0:03:04]} 10. Nge2 {[%clk 0:02:47]}  a5 {[%clk 0:03:02]} 11. O-O {[%clk 0:02:41]}  Na6 {[%clk 0:03:03]} 12. a3 {[%clk 0:02:41]}  Nc7 {[%clk 0:03:01]} 13. f3 {[%clk 0:02:34]}  Ne6 {[%clk 0:03:00]} 14. Bf2 {[%clk 0:02:33]}  b5 {[%clk 0:02:57]} 15. h3 {[%clk 0:02:21]}  Bd7 {[%clk 0:02:11]} 16. e4 {[%clk 0:02:16]}  dxe4 {[%clk 0:02:06]} 17. fxe4 {[%clk 0:02:16]}  Rc8 {[%clk 0:02:06]} 18. e5 {[%clk 0:02:02]}  Nd5 {[%clk 0:02:06]} 19. Nxd5 {[%clk 0:02:01]}  cxd5 {[%clk 0:02:07]} 20. Qd2 {[%clk 0:01:54]}  Bg5 {[%clk 0:01:51]} 21. Be3 {[%clk 0:01:54]}  Rf8 {[%clk 0:01:40]} 22. Rac1 {[%clk 0:01:43]}  Bxe3+ {[%clk 0:01:35]} 23. Qxe3 {[%clk 0:01:43]}  Qg5 {[%clk 0:01:36]} 24. Qxg5 {[%clk 0:01:37]}  hxg5 {[%clk 0:01:36]} 25. Bf5 {[%clk 0:01:28]}  b4 {[%clk 0:01:34]} 26. axb4 {[%clk 0:01:27]}  axb4 {[%clk 0:01:35]} 27. Kf2 {[%clk 0:01:24]}  Bb5 {[%clk 0:01:24]} 28. Rcd1 {[%clk 0:00:58]}  Rc6 {[%clk 0:01:08]} 29. Rfe1 {[%clk 0:00:57]}  Ra8 {[%clk 0:01:05]} 30. Ra1 {[%clk 0:00:50]}  Rac8 {[%clk 0:00:53]} 31. Ke3 {[%clk 0:00:44]}  Kf8 {[%clk 0:00:36]} 32. Rac1 {[%clk 0:00:28]}  Bxe2 {[%clk 0:00:33]} 33. Rxc6 {[%clk 0:00:27]}  Rxc6 {[%clk 0:00:34]} 34. Bxe6 {[%clk 0:00:24]}  Bc4 {[%clk 0:00:20]} 35. Bf5 {[%clk 0:00:21]}  Ra6 {[%clk 0:00:20]} 36. Bd3 {[%clk 0:00:20]}  Ra2 {[%clk 0:00:19]} 37. Rb1 {[%clk 0:00:19]}  Ke7 {[%clk 0:00:19]} 38. Kd2 {[%clk 0:00:18]}  f6 {[%clk 0:00:17]} 39. exf6+ {[%clk 0:00:17]}  gxf6 {[%clk 0:00:18]} 40. Kc2 {[%clk 0:00:17]}  Ra8 {[%clk 0:00:16]} 41. Re1+ {[%clk 0:00:17]}  Kd6 {[%clk 0:00:15]} 42. Bf5 {[%clk 0:00:16]}  Ra6 {[%clk 0:00:07]} 43. Re6+ {[%clk 0:00:11]}  Kc7 {[%clk 0:00:07]} 44. Re7+ {[%clk 0:00:11]}  Kd8 {[%clk 0:00:06]} 45. Rb7 {[%clk 0:00:10]}  b3+ {[%clk 0:00:06]} 46. Kc3 {[%clk 0:00:10]}  Ra1 {[%clk 0:00:06]} 47. Kb4 {[%clk 0:00:07]}  Rg1 {[%clk 0:00:05]} 48. g4 {[%clk 0:00:07]}  Rg2 {[%clk 0:00:05]} 49. Kc5 {[%clk 0:00:07]}  Ke8 {[%clk 0:00:02]} 50. Kd6 {[%clk 0:00:07]}  Kf8 {[%clk 0:00:02]} 51. Ke6 {[%clk 0:00:08]}  Rxb2 {[%clk 0:00:02]} 52. Kxf6 {[%clk 0:00:08]}  Ke8 {[%clk 0:00:02]} 53. Rb8# {[%clk 0:00:08]} 1-0


[Site "https://www.chess.com"]

[Event "Titled Tuesday Blitz December 27 Late 2022"]
[White "Kujawski, Adam"]
[Black "Bjelobrk, Igor"]
[WhiteFideId "1100920"]
[BlackFideId "4300726"]
[WhiteElo "2173"]
[BlackElo "2403"]
[Result "0-1"]
[Round "01"]
[TimeControl "180+2"]
[Date "2022.12.27"]
[WhiteClock "0:00:04"]
[BlackClock "0:00:09"]

1. e4 {[%clk 0:02:53]}  e5 {[%clk 0:02:59]} 2. Nf3 {[%clk 0:02:53]}  Nc6 {[%clk 0:02:59]} 3. Bb5 {[%clk 0:02:53]}  a6 {[%clk 0:02:58]} 4. Ba4 {[%clk 0:02:53]}  Bc5 {[%clk 0:02:57]} 5. c3 {[%clk 0:02:52]}  Nge7 {[%clk 0:02:56]} 6. d4 {[%clk 0:02:52]}  exd4 {[%clk 0:02:52]} 7. cxd4 {[%clk 0:02:53]}  Bb4+ {[%clk 0:02:53]} 8. Nc3 {[%clk 0:02:52]}  d5 {[%clk 0:02:49]} 9. e5 {[%clk 0:02:50]}  Bg4 {[%clk 0:02:44]} 10. a3 {[%clk 0:02:40]}  Bxc3+ {[%clk 0:02:30]} 11. bxc3 {[%clk 0:02:40]}  f6 {[%clk 0:02:30]} 12. exf6 {[%clk 0:02:37]}  gxf6 {[%clk 0:02:31]} 13. h3 {[%clk 0:02:26]}  Bh5 {[%clk 0:02:29]} 14. Rb1 {[%clk 0:02:06]}  b5 {[%clk 0:02:06]} 15. Bc2 {[%clk 0:02:05]}  Qd7 {[%clk 0:02:05]} 16. a4 {[%clk 0:02:04]}  Na5 {[%clk 0:01:52]} 17. axb5 {[%clk 0:02:02]}  axb5 {[%clk 0:01:52]} 18. O-O {[%clk 0:01:56]}  Nc4 {[%clk 0:01:42]} 19. Re1 {[%clk 0:01:45]}  O-O {[%clk 0:01:20]} 20. g4 {[%clk 0:01:17]}  Bg6 {[%clk 0:01:18]} 21. Nh4 {[%clk 0:01:11]}  Bxc2 {[%clk 0:00:53]} 22. Qxc2 {[%clk 0:01:12]}  Rfe8 {[%clk 0:00:49]} 23. Qd3 {[%clk 0:00:46]}  c6 {[%clk 0:00:43]} 24. Bf4 {[%clk 0:00:44]}  Kh8 {[%clk 0:00:34]} 25. Re2 {[%clk 0:00:39]}  Ng8 {[%clk 0:00:30]} 26. Rbe1 {[%clk 0:00:34]}  Rxe2 {[%clk 0:00:30]} 27. Qxe2 {[%clk 0:00:33]}  Qf7 {[%clk 0:00:30]} 28. Nf5 {[%clk 0:00:29]}  Rc8 {[%clk 0:00:17]} 29. Qe6 {[%clk 0:00:26]}  Qxe6 {[%clk 0:00:17]} 30. Rxe6 {[%clk 0:00:26]}  Nb6 {[%clk 0:00:13]} 31. Ne7 {[%clk 0:00:20]}  Nxe7 {[%clk 0:00:11]} 32. Rxe7 {[%clk 0:00:21]}  Na4 {[%clk 0:00:10]} 33. Bh6 {[%clk 0:00:19]}  Nxc3 {[%clk 0:00:09]} 34. Bg7+ {[%clk 0:00:19]}  Kg8 {[%clk 0:00:10]} 35. Bxf6 {[%clk 0:00:20]}  b4 {[%clk 0:00:09]} 36. Rg7+ {[%clk 0:00:19]}  Kf8 {[%clk 0:00:10]} 37. Rxh7 {[%clk 0:00:20]}  Re8 {[%clk 0:00:10]} 38. Rb7 {[%clk 0:00:14]}  Re1+ {[%clk 0:00:08]} 39. Kg2 {[%clk 0:00:13]}  Rb1 {[%clk 0:00:09]} 40. g5 {[%clk 0:00:12]}  Ne4 {[%clk 0:00:08]} 41. Bg7+ {[%clk 0:00:11]}  Kg8 {[%clk 0:00:07]} 42. g6 {[%clk 0:00:11]}  Rb2 {[%clk 0:00:06]} 43. Be5 {[%clk 0:00:09]}  Rxf2+ {[%clk 0:00:06]} 44. Kg1 {[%clk 0:00:10]}  Rf5 {[%clk 0:00:02]} 45. Rb8+ {[%clk 0:00:07]}  Rf8 {[%clk 0:00:03]} 46. Rxb4 {[%clk 0:00:07]}  Rf5 {[%clk 0:00:03]} 47. Rb8+ {[%clk 0:00:07]}  Rf8 {[%clk 0:00:03]} 48. Rb7 {[%clk 0:00:06]}  Re8 {[%clk 0:00:02]} 49. Rg7+ {[%clk 0:00:06]}  Kf8 {[%clk 0:00:03]} 50. Rh7 {[%clk 0:00:06]}  Re6 {[%clk 0:00:02]} 51. Rh8+ {[%clk 0:00:06]}  Ke7 {[%clk 0:00:03]} 52. Rh7+ {[%clk 0:00:05]}  Ke8 {[%clk 0:00:02]} 53. g7 {[%clk 0:00:05]}  Rg6+ {[%clk 0:00:03]} 54. Kf1 {[%clk 0:00:04]}  Kf7 {[%clk 0:00:04]} 55. h4 {[%clk 0:00:04]}  Nf6 {[%clk 0:00:04]} 56. Bxf6 {[%clk 0:00:03]}  Kxf6 {[%clk 0:00:03]} 57. h5 {[%clk 0:00:02]}  Rxg7 {[%clk 0:00:04]} 58. Rxg7 {[%clk 0:00:02]}  Kxg7 {[%clk 0:00:04]} 59. Ke2 {[%clk 0:00:01]}  Kh6 {[%clk 0:00:05]} 60. Kd2 {[%clk 0:00:02]}  Kxh5 {[%clk 0:00:06]} 61. Kc3 {[%clk 0:00:02]}  Kg5 {[%clk 0:00:07]} 62. Kb4 {[%clk 0:00:03]}  Kf4 {[%clk 0:00:08]} 63. Kc5 {[%clk 0:00:04]}  Ke4 {[%clk 0:00:09]} 0-1


[Site "https://www.chess.com"]

[Event "Titled Tuesday Blitz December 27 Late 2022"]
[White "Kuzmicz, Krystian"]
[Black "Antonios, Johnny"]
[WhiteFideId "1119125"]
[BlackFideId "5300843"]
[WhiteElo "2466"]
[BlackElo "2269"]
[Result "1-0"]
[Round "01"]
[TimeControl "180+2"]
[Date "2022.12.27"]
[WhiteClock "0:00:29"]
[BlackClock "0:00:38"]

1. e4 {[%clk 0:03:00]}  e5 {[%clk 0:02:59]} 2. Bc4 {[%clk 0:02:59]}  Nf6 {[%clk 0:02:59]} 3. Qf3 {[%clk 0:02:59]}  g6 {[%clk 0:02:54]} 4. Nc3 {[%clk 0:02:58]}  Bg7 {[%clk 0:02:55]} 5. d3 {[%clk 0:02:58]}  O-O {[%clk 0:02:51]} 6. Nge2 {[%clk 0:02:57]}  c6 {[%clk 0:02:42]} 7. Bb3 {[%clk 0:02:56]}  d6 {[%clk 0:02:40]} 8. h3 {[%clk 0:02:56]}  Nbd7 {[%clk 0:02:40]} 9. g4 {[%clk 0:02:54]}  Nc5 {[%clk 0:02:40]} 10. Ng3 {[%clk 0:02:52]}  a5 {[%clk 0:02:39]} 11. a4 {[%clk 0:02:22]}  Nxb3 {[%clk 0:02:38]} 12. cxb3 {[%clk 0:02:23]}  Nd7 {[%clk 0:02:37]} 13. Be3 {[%clk 0:02:19]}  Nc5 {[%clk 0:02:35]} 14. Rd1 {[%clk 0:01:50]}  Nxb3 {[%clk 0:02:31]} 15. Rg1 {[%clk 0:01:50]}  Nd4 {[%clk 0:02:28]} 16. Bxd4 {[%clk 0:01:49]}  exd4 {[%clk 0:02:29]} 17. Nce2 {[%clk 0:01:50]}  d5 {[%clk 0:02:29]} 18. Kf1 {[%clk 0:01:46]}  dxe4 {[%clk 0:02:26]} 19. dxe4 {[%clk 0:01:44]}  c5 {[%clk 0:02:20]} 20. Nf4 {[%clk 0:01:43]}  Qd6 {[%clk 0:02:15]} 21. Nd5 {[%clk 0:01:37]}  b6 {[%clk 0:02:11]} 22. Nf5 {[%clk 0:01:27]}  gxf5 {[%clk 0:02:09]} 23. gxf5 {[%clk 0:01:27]}  Kh8 {[%clk 0:02:07]} 24. f6 {[%clk 0:00:54]}  Bh6 {[%clk 0:01:58]} 25. Qh5 {[%clk 0:00:53]}  Ba6+ {[%clk 0:01:40]} 26. Kg2 {[%clk 0:00:52]}  Rg8+ {[%clk 0:01:39]} 27. Kh1 {[%clk 0:00:52]}  Bf4 {[%clk 0:01:13]} 28. Qxf7 {[%clk 0:00:40]}  Be2 {[%clk 0:01:10]} 29. Rg7 {[%clk 0:00:39]}  Bf3+ {[%clk 0:01:08]} 30. Kg1 {[%clk 0:00:39]}  Bxe4 {[%clk 0:01:07]} 31. Ne7 {[%clk 0:00:34]}  Rgf8 {[%clk 0:00:39]} 32. Rxh7+ {[%clk 0:00:28]}  Bxh7 {[%clk 0:00:38]} 33. Qg7# {[%clk 0:00:29]} 1-0


[Site "https://www.chess.com"]

[Event "Titled Tuesday Blitz December 27 Late 2022"]
[White "Liu, Kelsey"]
[Black "Denishev, Marat"]
[WhiteFideId "30944481"]
[BlackFideId "24131563"]
[WhiteElo "2065"]
[BlackElo "2255"]
[Result "0-1"]
[Round "01"]
[TimeControl "180+2"]
[Date "2022.12.27"]
[WhiteClock "0:00:08"]
[BlackClock "0:00:06"]

1. e4 {[%clk 0:02:57]}  c5 {[%clk 0:02:59]} 2. Nf3 {[%clk 0:02:57]}  d6 {[%clk 0:02:59]} 3. Nc3 {[%clk 0:02:57]}  Nf6 {[%clk 0:02:58]} 4. e5 {[%clk 0:02:56]}  dxe5 {[%clk 0:02:58]} 5. Nxe5 {[%clk 0:02:57]}  Nbd7 {[%clk 0:02:58]} 6. d4 {[%clk 0:02:56]}  Nxe5 {[%clk 0:02:56]} 7. dxe5 {[%clk 0:02:57]}  Qxd1+ {[%clk 0:02:57]} 8. Kxd1 {[%clk 0:02:56]}  Ng4 {[%clk 0:02:56]} 9. Bb5+ {[%clk 0:02:56]}  Bd7 {[%clk 0:02:56]} 10. e6 {[%clk 0:02:56]}  Bxb5 {[%clk 0:02:32]} 11. Nxb5 {[%clk 0:02:55]}  Nxf2+ {[%clk 0:02:31]} 12. Ke2 {[%clk 0:02:53]}  Nxh1 {[%clk 0:02:31]} 13. Nc7+ {[%clk 0:02:41]}  Kd8 {[%clk 0:02:31]} 14. Nxa8 {[%clk 0:02:41]}  fxe6 {[%clk 0:01:49]} 15. Bf4 {[%clk 0:02:40]}  g5 {[%clk 0:01:49]} 16. Be5 {[%clk 0:02:39]}  Rg8 {[%clk 0:01:49]} 17. Nc7 {[%clk 0:02:27]}  Kd7 {[%clk 0:01:43]} 18. Rd1+ {[%clk 0:02:25]}  Kc6 {[%clk 0:01:43]} 19. Nxe6 {[%clk 0:01:10]}  Bh6 {[%clk 0:01:40]} 20. c4 {[%clk 0:01:02]}  g4 {[%clk 0:01:35]} 21. Rxh1 {[%clk 0:00:52]}  Rg6 {[%clk 0:01:34]} 22. Nf4 {[%clk 0:00:50]}  Rg5 {[%clk 0:01:32]} 23. Nd3 {[%clk 0:00:47]}  b5 {[%clk 0:01:25]} 24. b3 {[%clk 0:00:46]}  bxc4 {[%clk 0:01:25]} 25. bxc4 {[%clk 0:00:47]}  Rg6 {[%clk 0:01:23]} 26. Rb1 {[%clk 0:00:40]}  Bg5 {[%clk 0:01:19]} 27. Rb5 {[%clk 0:00:38]}  Re6 {[%clk 0:01:15]} 28. Rxc5+ {[%clk 0:00:38]}  Kb6 {[%clk 0:01:15]} 29. Rb5+ {[%clk 0:00:36]}  Kc6 {[%clk 0:01:14]} 30. Kd1 {[%clk 0:00:30]}  Be3 {[%clk 0:01:08]} 31. Nb4+ {[%clk 0:00:28]}  Kd7 {[%clk 0:01:08]} 32. Rb7+ {[%clk 0:00:24]}  Ke8 {[%clk 0:01:08]} 33. Bg3 {[%clk 0:00:18]}  Bc5 {[%clk 0:01:04]} 34. Nd5 {[%clk 0:00:18]}  Re4 {[%clk 0:01:01]} 35. Nc7+ {[%clk 0:00:11]}  Kf7 {[%clk 0:01:00]} 36. Nb5 {[%clk 0:00:10]}  a6 {[%clk 0:00:55]} 37. Nc3 {[%clk 0:00:06]}  Rxc4 {[%clk 0:00:55]} 38. Kd2 {[%clk 0:00:06]}  h5 {[%clk 0:00:46]} 39. Be5 {[%clk 0:00:06]}  Bg1 {[%clk 0:00:42]} 40. Kd3 {[%clk 0:00:06]}  Rc6 {[%clk 0:00:41]} 41. Ne4 {[%clk 0:00:05]}  Rc1 {[%clk 0:00:36]} 42. Bg3 {[%clk 0:00:04]}  Ra1 {[%clk 0:00:32]} 43. Rb2 {[%clk 0:00:04]}  a5 {[%clk 0:00:25]} 44. Rc2 {[%clk 0:00:04]}  a4 {[%clk 0:00:22]} 45. h3 {[%clk 0:00:05]}  Bb6 {[%clk 0:00:19]} 46. Re2 {[%clk 0:00:05]}  a3 {[%clk 0:00:13]} 47. hxg4 {[%clk 0:00:06]}  hxg4 {[%clk 0:00:13]} 48. Kc3 {[%clk 0:00:06]}  Rb1 {[%clk 0:00:11]} 49. Rc2 {[%clk 0:00:06]}  Ba5+ {[%clk 0:00:11]} 50. Kc4 {[%clk 0:00:05]}  Rb4+ {[%clk 0:00:10]} 51. Kd3 {[%clk 0:00:06]}  Bb6 {[%clk 0:00:09]} 52. Ng5+ {[%clk 0:00:06]}  Kg6 {[%clk 0:00:09]} 53. Ne4 {[%clk 0:00:05]}  Rd4+ {[%clk 0:00:09]} 54. Kc3 {[%clk 0:00:05]}  Rxe4 {[%clk 0:00:09]} 55. Kb3 {[%clk 0:00:05]}  Re3+ {[%clk 0:00:06]} 56. Rc3 {[%clk 0:00:06]}  Re2 {[%clk 0:00:06]} 57. Kxa3 {[%clk 0:00:06]}  Rxg2 {[%clk 0:00:07]} 58. Kb3 {[%clk 0:00:06]}  Bd4 {[%clk 0:00:07]} 59. Rd3 {[%clk 0:00:06]}  e5 {[%clk 0:00:07]} 60. a4 {[%clk 0:00:06]}  Kf5 {[%clk 0:00:05]} 61. a5 {[%clk 0:00:06]}  Ke4 {[%clk 0:00:06]} 62. Kc4 {[%clk 0:00:06]}  Rc2+ {[%clk 0:00:05]} 63. Kb3 {[%clk 0:00:07]}  Kxd3 {[%clk 0:00:06]} 64. a6 {[%clk 0:00:08]}  Rc7 {[%clk 0:00:06]} 65. a7 {[%clk 0:00:08]}  Rxa7 {[%clk 0:00:06]} 0-1


[Site "https://www.chess.com"]